[Event "Titled Tuesday Blitz June 13 Late 2023"]
[White "Sebag, Marie"]
[Black "Burdalev, Kirill"]
[WhiteFideId "617822"]
[BlackFideId "14121913"]
[WhiteElo "2431"]
[BlackElo "2236"]
[Result "1-0"]
[Round "1"]
[TimeControl "180+2"]
[Date "2023.06.13"]
[WhiteClock "0:00:13"]
[BlackClock "0:00:02"]
[Board "156"]

1. c4 {[%clk 0:02:59]}  e6 {[%clk 0:02:59]} 2. Nc3 {[%clk 0:02:57]}  d5 {[%clk 0:02:59]} 3. d4 {[%clk 0:02:56]}  Be7 {[%clk 0:02:59]} 4. g3 {[%clk 0:02:56]}  Nf6 {[%clk 0:02:56]} 5. Bg2 {[%clk 0:02:56]}  O-O {[%clk 0:02:55]} 6. Nf3 {[%clk 0:02:56]}  dxc4 {[%clk 0:02:51]} 7. O-O {[%clk 0:02:48]}  Nc6 {[%clk 0:02:49]} 8. e3 {[%clk 0:02:46]}  Rb8 {[%clk 0:02:47]} 9. Qe2 {[%clk 0:02:41]}  b5 {[%clk 0:02:47]} 10. Rd1 {[%clk 0:02:41]}  Nd5 {[%clk 0:02:14]} 11. e4 {[%clk 0:02:34]}  Ndb4 {[%clk 0:02:02]} 12. b3 {[%clk 0:02:32]}  Nd3 {[%clk 0:01:54]} 13. bxc4 {[%clk 0:02:32]}  bxc4 {[%clk 0:01:53]} 14. Be3 {[%clk 0:02:30]}  Rb2 {[%clk 0:01:47]} 15. Rd2 {[%clk 0:02:29]}  Bb4 {[%clk 0:01:36]} 16. Rxb2 {[%clk 0:02:01]}  Bxc3 {[%clk 0:01:35]} 17. Rbb1 {[%clk 0:02:01]}  Nxd4 {[%clk 0:01:29]} 18. Nxd4 {[%clk 0:01:57]}  Bxd4 {[%clk 0:01:30]} 19. Bxd4 {[%clk 0:01:55]}  Qxd4 {[%clk 0:01:31]} 20. Rd1 {[%clk 0:01:54]}  Ba6 {[%clk 0:01:30]} 21. Qc2 {[%clk 0:01:52]}  g6 {[%clk 0:01:13]} 22. Rab1 {[%clk 0:01:50]}  Kg7 {[%clk 0:01:10]} 23. Qa4 {[%clk 0:01:47]}  Qxf2+ {[%clk 0:01:07]} 24. Kh1 {[%clk 0:01:46]}  Qe3 {[%clk 0:00:55]} 25. Rf1 {[%clk 0:01:30]}  Bc8 {[%clk 0:00:37]} 26. Qxc4 {[%clk 0:01:22]}  Nf2+ {[%clk 0:00:37]} 27. Rxf2 {[%clk 0:01:22]}  Qxf2 {[%clk 0:00:38]} 28. Qxc7 {[%clk 0:01:21]}  Ba6 {[%clk 0:00:35]} 29. Qc3+ {[%clk 0:01:18]}  Qf6 {[%clk 0:00:32]} 30. Qa3 {[%clk 0:01:16]}  Bc4 {[%clk 0:00:28]} 31. Qxa7 {[%clk 0:01:13]}  Rd8 {[%clk 0:00:28]} 32. Qa5 {[%clk 0:00:59]}  Rd3 {[%clk 0:00:19]} 33. Rf1 {[%clk 0:00:54]}  Qd4 {[%clk 0:00:17]} 34. Qc7 {[%clk 0:00:49]}  e5 {[%clk 0:00:17]} 35. h3 {[%clk 0:00:45]}  Rd2 {[%clk 0:00:17]} 36. Rg1 {[%clk 0:00:45]}  Rxa2 {[%clk 0:00:15]} 37. Qe7 {[%clk 0:00:43]}  h5 {[%clk 0:00:14]} 38. Qg5 {[%clk 0:00:41]}  Be6 {[%clk 0:00:13]} 39. Kh2 {[%clk 0:00:38]}  Qf2 {[%clk 0:00:12]} 40. Qxe5+ {[%clk 0:00:35]}  Qf6 {[%clk 0:00:11]} 41. Qc7 {[%clk 0:00:30]}  Qf2 {[%clk 0:00:08]} 42. Qe5+ {[%clk 0:00:29]}  Qf6 {[%clk 0:00:08]} 43. Qc7 {[%clk 0:00:29]}  h4 {[%clk 0:00:07]} 44. g4 {[%clk 0:00:28]}  Qg5 {[%clk 0:00:06]} 45. Qc3+ {[%clk 0:00:28]}  Kh7 {[%clk 0:00:06]} 46. Rf1 {[%clk 0:00:27]}  Qd8 {[%clk 0:00:04]} 47. Qf3 {[%clk 0:00:25]}  Qb8+ {[%clk 0:00:04]} 48. Kh1 {[%clk 0:00:24]}  Qb2 {[%clk 0:00:04]} 49. Rg1 {[%clk 0:00:18]}  Ra3 {[%clk 0:00:04]} 50. Qf4 {[%clk 0:00:14]}  Rg3 {[%clk 0:00:03]} 51. Qg5 {[%clk 0:00:13]}  Qf2 {[%clk 0:00:02]} 52. Qxh4+ {[%clk 0:00:13]}  Kg7 {[%clk 0:00:02]} 53. e5 {[%clk 0:00:13]}  Rxg2 {[%clk 0:00:02]} 54. Qf6+ {[%clk 0:00:11]}  Qxf6 {[%clk 0:00:02]} 55. exf6+ {[%clk 0:00:11]}  Kxf6 {[%clk 0:00:03]} 56. Kxg2 {[%clk 0:00:11]}  Kg5 {[%clk 0:00:03]} 57. Kg3 {[%clk 0:00:11]}  f5 {[%clk 0:00:03]} 58. h4+ {[%clk 0:00:12]}  Kh6 {[%clk 0:00:03]} 59. g5+ {[%clk 0:00:12]}  Kh5 {[%clk 0:00:04]} 60. Re1 {[%clk 0:00:13]}  Bc8 {[%clk 0:00:04]} 61. Re8 {[%clk 0:00:13]}  f4+ {[%clk 0:00:04]} 62. Kxf4 {[%clk 0:00:13]}  Bf5 {[%clk 0:00:02]} 63. Rh8# {[%clk 0:00:13]} 1-0


[Site "https://www.chess.com"]

[Event "Titled Tuesday Blitz June 13 Late 2023"]
[White "kiwibobo"]
[Black "MaryanKyrychenko"]
[WhiteElo "2281"]
[BlackElo "2598"]
[Result "1-0"]
[Round "1"]
[TimeControl "180+2"]
[Date "2023.06.13"]
[WhiteClock "0:00:19"]
[BlackClock "0:00:04"]
[Board "157"]

1. e4 {[%clk 0:03:00]}  c5 {[%clk 0:02:52]} 2. Nf3 {[%clk 0:02:59]}  d6 {[%clk 0:02:52]} 3. d4 {[%clk 0:02:59]}  cxd4 {[%clk 0:02:53]} 4. Nxd4 {[%clk 0:03:00]}  Nf6 {[%clk 0:02:52]} 5. Nc3 {[%clk 0:03:00]}  g6 {[%clk 0:02:52]} 6. Be3 {[%clk 0:03:00]}  Bg7 {[%clk 0:02:52]} 7. f3 {[%clk 0:03:00]}  O-O {[%clk 0:02:52]} 8. Qd2 {[%clk 0:03:01]}  Nc6 {[%clk 0:02:52]} 9. Bc4 {[%clk 0:03:02]}  Bd7 {[%clk 0:02:51]} 10. O-O-O {[%clk 0:03:03]}  b5 {[%clk 0:02:52]} 11. Nxc6 {[%clk 0:02:40]}  Bxc6 {[%clk 0:02:51]} 12. Nxb5 {[%clk 0:02:39]}  Rb8 {[%clk 0:02:34]} 13. Nd4 {[%clk 0:02:30]}  Bd7 {[%clk 0:02:30]} 14. Kb1 {[%clk 0:02:18]}  Qc7 {[%clk 0:02:20]} 15. Bb3 {[%clk 0:02:14]}  Rfc8 {[%clk 0:02:18]} 16. h4 {[%clk 0:02:12]}  a5 {[%clk 0:02:13]} 17. a4 {[%clk 0:01:43]}  Rb7 {[%clk 0:01:24]} 18. h5 {[%clk 0:01:38]}  Rxb3 {[%clk 0:00:56]} 19. cxb3 {[%clk 0:01:32]}  Nxh5 {[%clk 0:00:55]} 20. g4 {[%clk 0:01:29]}  Nf6 {[%clk 0:00:51]} 21. Rc1 {[%clk 0:01:22]}  Qb7 {[%clk 0:00:51]} 22. Rxc8+ {[%clk 0:01:22]}  Qxc8 {[%clk 0:00:52]} 23. Qxa5 {[%clk 0:01:10]}  Qb7 {[%clk 0:00:40]} 24. Ka2 {[%clk 0:00:54]}  h5 {[%clk 0:00:30]} 25. g5 {[%clk 0:00:46]}  Ne8 {[%clk 0:00:30]} 26. Rc1 {[%clk 0:00:44]}  h4 {[%clk 0:00:25]} 27. Nb5 {[%clk 0:00:44]}  Be6 {[%clk 0:00:22]} 28. Qa7 {[%clk 0:00:42]}  Qxa7 {[%clk 0:00:17]} 29. Nxa7 {[%clk 0:00:43]}  h3 {[%clk 0:00:17]} 30. Nc6 {[%clk 0:00:42]}  Kf8 {[%clk 0:00:13]} 31. a5 {[%clk 0:00:42]}  Nc7 {[%clk 0:00:12]} 32. Nxe7 {[%clk 0:00:29]}  Na6 {[%clk 0:00:12]} 33. Nc6 {[%clk 0:00:28]}  Bd7 {[%clk 0:00:12]} 34. Nd4 {[%clk 0:00:27]}  Nb4+ {[%clk 0:00:12]} 35. Ka3 {[%clk 0:00:27]}  Nd3 {[%clk 0:00:12]} 36. Rd1 {[%clk 0:00:24]}  h2 {[%clk 0:00:11]} 37. Rh1 {[%clk 0:00:22]}  Ne5 {[%clk 0:00:07]} 38. Rxh2 {[%clk 0:00:21]}  Ke7 {[%clk 0:00:07]} 39. Rc2 {[%clk 0:00:21]}  Kd8 {[%clk 0:00:07]} 40. a6 {[%clk 0:00:21]}  Bc8 {[%clk 0:00:05]} 41. a7 {[%clk 0:00:21]}  Bb7 {[%clk 0:00:06]} 42. Nb5 {[%clk 0:00:20]}  Kd7 {[%clk 0:00:04]} 43. Rc7+ {[%clk 0:00:19]} 1-0


[Site "https://www.chess.com"]

[Event "Titled Tuesday Blitz June 13 Late 2023"]
[White "Schnaider, Ilan"]
[Black "Magallanes, Rey Jomar"]
[WhiteFideId "169013"]
[BlackFideId "5205948"]
[WhiteElo "2224"]
[BlackElo "2276"]
[Result "1-0"]
[Round "1"]
[TimeControl "180+2"]
[Date "2023.06.13"]
[WhiteClock "0:00:05"]
[BlackClock "0:00:06"]
[Board "158"]

1. e4 {[%clk 0:03:00]}  c5 {[%clk 0:02:57]} 2. Nf3 {[%clk 0:02:59]}  d6 {[%clk 0:02:57]} 3. Bb5+ {[%clk 0:02:58]}  Bd7 {[%clk 0:02:57]} 4. Bxd7+ {[%clk 0:02:57]}  Qxd7 {[%clk 0:02:58]} 5. c4 {[%clk 0:02:56]}  Nc6 {[%clk 0:02:57]} 6. Nc3 {[%clk 0:02:54]}  g6 {[%clk 0:02:57]} 7. d4 {[%clk 0:02:48]}  cxd4 {[%clk 0:02:54]} 8. Nxd4 {[%clk 0:02:49]}  Bg7 {[%clk 0:02:52]} 9. Be3 {[%clk 0:02:48]}  Nf6 {[%clk 0:02:51]} 10. f3 {[%clk 0:02:48]}  O-O {[%clk 0:02:51]} 11. O-O {[%clk 0:02:49]}  Rfd8 {[%clk 0:02:48]} 12. Qd3 {[%clk 0:02:44]}  Ne5 {[%clk 0:02:46]} 13. Qe2 {[%clk 0:02:44]}  Rac8 {[%clk 0:02:45]} 14. b3 {[%clk 0:02:43]}  a6 {[%clk 0:02:45]} 15. Rac1 {[%clk 0:02:42]}  e6 {[%clk 0:02:37]} 16. Rfd1 {[%clk 0:02:42]}  Qe7 {[%clk 0:02:33]} 17. Bf4 {[%clk 0:02:34]}  Nh5 {[%clk 0:02:31]} 18. Be3 {[%clk 0:02:34]}  Bf6 {[%clk 0:02:23]} 19. g4 {[%clk 0:02:08]}  Ng7 {[%clk 0:02:22]} 20. g5 {[%clk 0:02:08]}  Bxg5 {[%clk 0:02:15]} 21. f4 {[%clk 0:02:08]}  Bxf4 {[%clk 0:01:45]} 22. Bxf4 {[%clk 0:02:09]}  Nh5 {[%clk 0:01:45]} 23. Be3 {[%clk 0:01:54]}  Qh4 {[%clk 0:01:43]} 24. Qf2 {[%clk 0:01:50]}  Qg4+ {[%clk 0:01:38]} 25. Qg2 {[%clk 0:01:50]}  Kg7 {[%clk 0:01:20]} 26. h3 {[%clk 0:01:43]}  Qxg2+ {[%clk 0:01:13]} 27. Kxg2 {[%clk 0:01:44]}  Re8 {[%clk 0:01:09]} 28. Nf3 {[%clk 0:01:42]}  Nxf3 {[%clk 0:01:05]} 29. Kxf3 {[%clk 0:01:42]}  Rcd8 {[%clk 0:01:06]} 30. Na4 {[%clk 0:01:40]}  Rd7 {[%clk 0:01:07]} 31. Nc5 {[%clk 0:01:39]}  Rde7 {[%clk 0:01:06]} 32. Rxd6 {[%clk 0:01:39]}  e5 {[%clk 0:01:07]} 33. Rcd1 {[%clk 0:01:38]}  f5 {[%clk 0:01:06]} 34. Rd7 {[%clk 0:01:38]}  f4 {[%clk 0:01:04]} 35. Bf2 {[%clk 0:01:38]}  g5 {[%clk 0:01:04]} 36. Nxb7 {[%clk 0:01:30]}  Nf6 {[%clk 0:01:01]} 37. Rxe7+ {[%clk 0:01:21]}  Rxe7 {[%clk 0:01:00]} 38. Nd6 {[%clk 0:01:22]}  Kg6 {[%clk 0:00:58]} 39. Nf5 {[%clk 0:01:21]}  Rf7 {[%clk 0:00:55]} 40. Rd6 {[%clk 0:01:09]}  h5 {[%clk 0:00:52]} 41. Ke2 {[%clk 0:00:53]}  Kh7 {[%clk 0:00:43]} 42. Kd3 {[%clk 0:00:40]}  g4 {[%clk 0:00:40]} 43. hxg4 {[%clk 0:00:41]}  hxg4 {[%clk 0:00:31]} 44. Bh4 {[%clk 0:00:41]}  g3 {[%clk 0:00:25]} 45. Re6 {[%clk 0:00:16]}  Ng4 {[%clk 0:00:19]} 46. Ke2 {[%clk 0:00:11]}  g2 {[%clk 0:00:19]} 47. Bf2 {[%clk 0:00:12]}  Rd7 {[%clk 0:00:09]} 48. Nh4 {[%clk 0:00:10]}  Nxf2 {[%clk 0:00:07]} 49. Kxf2 {[%clk 0:00:10]}  Rd2+ {[%clk 0:00:08]} 50. Kg1 {[%clk 0:00:11]}  Rd1+ {[%clk 0:00:08]} 51. Kxg2 {[%clk 0:00:10]}  Rd2+ {[%clk 0:00:08]} 52. Kh3 {[%clk 0:00:10]}  Rd3+ {[%clk 0:00:09]} 53. Kg4 {[%clk 0:00:07]}  Rg3+ {[%clk 0:00:09]} 54. Kf5 {[%clk 0:00:07]}  f3 {[%clk 0:00:09]} 55. Kxe5 {[%clk 0:00:06]}  f2 {[%clk 0:00:09]} 56. Rf6 {[%clk 0:00:06]}  Rg5+ {[%clk 0:00:09]} 57. Kd4 {[%clk 0:00:05]}  Rg4 {[%clk 0:00:08]} 58. Rxf2 {[%clk 0:00:05]}  Rxh4 {[%clk 0:00:08]} 59. Rf6 {[%clk 0:00:05]}  Rh1 {[%clk 0:00:08]} 60. Rxa6 {[%clk 0:00:05]}  Rd1+ {[%clk 0:00:08]} 61. Ke5 {[%clk 0:00:06]}  Re1 {[%clk 0:00:07]} 62. c5 {[%clk 0:00:06]}  Rc1 {[%clk 0:00:08]} 63. c6 {[%clk 0:00:06]}  Rc2 {[%clk 0:00:08]} 64. b4 {[%clk 0:00:05]}  Rb2 {[%clk 0:00:07]} 65. c7 {[%clk 0:00:05]}  Rc2 {[%clk 0:00:07]} 66. Ra7 {[%clk 0:00:05]}  Kg6 {[%clk 0:00:07]} 67. b5 {[%clk 0:00:05]}  Rc5+ {[%clk 0:00:06]} 68. Kd4 {[%clk 0:00:05]}  Rxb5 {[%clk 0:00:06]} 69. c8=Q {[%clk 0:00:06]}  Rb4+ {[%clk 0:00:07]} 70. Kc3 {[%clk 0:00:06]}  Rxe4 {[%clk 0:00:07]} 71. Qc6+ {[%clk 0:00:05]}  Kf5 {[%clk 0:00:07]} 72. Rf7+ {[%clk 0:00:04]}  Kg5 {[%clk 0:00:06]} 73. Qxe4 {[%clk 0:00:04]}  Kh6 {[%clk 0:00:06]} 74. Rh7+ {[%clk 0:00:03]}  Kg5 {[%clk 0:00:06]} 75. Rh1 {[%clk 0:00:03]}  Kf6 {[%clk 0:00:06]} 76. Rh6+ {[%clk 0:00:04]}  Kg5 {[%clk 0:00:05]} 77. Rg6+ {[%clk 0:00:04]}  Kh5 {[%clk 0:00:06]} 78. Qg4# {[%clk 0:00:05]} 1-0


[Site "https://www.chess.com"]

[Event "Titled Tuesday Blitz June 13 Late 2023"]
[White "Vila Dupla, Aurelio"]
[Black "Altman, Joshua"]
[WhiteFideId "2203383"]
[BlackFideId "426210"]
[WhiteElo "2009"]
[BlackElo "2028"]
[Result "0-1"]
[Round "1"]
[TimeControl "180+2"]
[Date "2023.06.13"]
[WhiteClock "0:00:20"]
[BlackClock "0:02:13"]
[Board "159"]

1. Nf3 {[%clk 0:02:59]}  e6 {[%clk 0:03:00]} 2. d4 {[%clk 0:02:51]}  Nf6 {[%clk 0:03:00]} 3. g3 {[%clk 0:02:47]}  b6 {[%clk 0:03:00]} 4. Bg2 {[%clk 0:02:46]}  Bb7 {[%clk 0:03:01]} 5. O-O {[%clk 0:02:46]}  Be7 {[%clk 0:03:02]} 6. b3 {[%clk 0:02:42]}  O-O {[%clk 0:03:01]} 7. Bb2 {[%clk 0:02:42]}  c5 {[%clk 0:03:02]} 8. c4 {[%clk 0:02:41]}  cxd4 {[%clk 0:03:02]} 9. Nxd4 {[%clk 0:02:37]}  Bxg2 {[%clk 0:03:01]} 10. Kxg2 {[%clk 0:02:38]}  Qc8 {[%clk 0:03:00]} 11. Qd3 {[%clk 0:02:36]}  Nc6 {[%clk 0:03:00]} 12. Qf3 {[%clk 0:02:28]}  Ne5 {[%clk 0:02:45]} 13. Qf4 {[%clk 0:02:12]}  Qb7+ {[%clk 0:02:44]} 14. f3 {[%clk 0:02:12]}  Ng6 {[%clk 0:02:43]} 15. Qd2 {[%clk 0:02:08]}  Rfd8 {[%clk 0:02:41]} 16. e4 {[%clk 0:02:00]}  d5 {[%clk 0:02:40]} 17. exd5 {[%clk 0:01:51]}  exd5 {[%clk 0:02:40]} 18. Na3 {[%clk 0:01:21]}  Bxa3 {[%clk 0:02:31]} 19. Bxa3 {[%clk 0:01:21]}  dxc4 {[%clk 0:02:31]} 20. bxc4 {[%clk 0:01:16]}  Qa6 {[%clk 0:02:31]} 21. Bb2 {[%clk 0:01:15]}  Qxc4 {[%clk 0:02:29]} 22. Rfc1 {[%clk 0:01:15]}  Qd5 {[%clk 0:02:27]} 23. h3 {[%clk 0:00:59]}  h5 {[%clk 0:02:24]} 24. h4 {[%clk 0:00:47]}  Ne5 {[%clk 0:02:16]} 25. Qf4 {[%clk 0:00:33]}  Nd3 {[%clk 0:02:15]} 26. Qe3 {[%clk 0:00:20]}  Nxb2 {[%clk 0:02:13]} 0-1


[Site "https://www.chess.com"]

[Event "Titled Tuesday Blitz June 13 Late 2023"]
[White "SicilianPanzer"]
[Black "Grinev, Valeriy"]
[BlackFideId "14117517"]
[WhiteElo "2240"]
[BlackElo "2366"]
[Result "0-1"]
[Round "1"]
[TimeControl "180+2"]
[Date "2023.06.13"]
[WhiteClock "0:00:00"]
[BlackClock "0:01:07"]
[Board "163"]

1. e4 {[%clk 0:02:59]}  c5 {[%clk 0:02:59]} 2. Nf3 {[%clk 0:02:59]}  e6 {[%clk 0:02:59]} 3. d4 {[%clk 0:02:59]}  cxd4 {[%clk 0:03:00]} 4. Nxd4 {[%clk 0:02:59]}  a6 {[%clk 0:03:00]} 5. a4 {[%clk 0:02:58]}  Nf6 {[%clk 0:02:59]} 6. Nc3 {[%clk 0:02:57]}  Bb4 {[%clk 0:02:58]} 7. Bd3 {[%clk 0:02:57]}  d5 {[%clk 0:02:39]} 8. exd5 {[%clk 0:02:19]}  Nxd5 {[%clk 0:02:38]} 9. Bd2 {[%clk 0:02:14]}  Nxc3 {[%clk 0:02:37]} 10. bxc3 {[%clk 0:02:13]}  Be7 {[%clk 0:02:37]} 11. O-O {[%clk 0:02:07]}  O-O {[%clk 0:02:37]} 12. Re1 {[%clk 0:02:04]}  Bd7 {[%clk 0:02:34]} 13. a5 {[%clk 0:01:48]}  Nc6 {[%clk 0:02:34]} 14. Be3 {[%clk 0:01:40]}  g6 {[%clk 0:02:27]} 15. Nxc6 {[%clk 0:01:26]}  Bxc6 {[%clk 0:02:26]} 16. Bb6 {[%clk 0:01:25]}  Qd5 {[%clk 0:02:24]} 17. Be4 {[%clk 0:01:06]}  Qxd1 {[%clk 0:02:24]} 18. Raxd1 {[%clk 0:01:05]}  Bxe4 {[%clk 0:02:25]} 19. Rxe4 {[%clk 0:01:06]}  Bf6 {[%clk 0:02:24]} 20. Rd7 {[%clk 0:01:02]}  Rac8 {[%clk 0:02:23]} 21. c4 {[%clk 0:00:56]}  Rc6 {[%clk 0:02:16]} 22. Rxb7 {[%clk 0:00:52]}  Rfc8 {[%clk 0:02:16]} 23. Rf4 {[%clk 0:00:45]}  Kg7 {[%clk 0:02:16]} 24. c5 {[%clk 0:00:19]}  g5 {[%clk 0:02:11]} 25. Rf3 {[%clk 0:00:15]}  g4 {[%clk 0:02:10]} 26. Rd3 {[%clk 0:00:10]}  h5 {[%clk 0:01:47]} 27. Rdd7 {[%clk 0:00:10]}  Rf8 {[%clk 0:01:47]} 28. f3 {[%clk 0:00:09]}  gxf3 {[%clk 0:01:45]} 29. gxf3 {[%clk 0:00:10]}  Bg5 {[%clk 0:01:41]} 30. Kf2 {[%clk 0:00:09]}  Bf4 {[%clk 0:01:39]} 31. h3 {[%clk 0:00:07]}  Kg6 {[%clk 0:01:38]} 32. Ra7 {[%clk 0:00:07]}  Bd2 {[%clk 0:01:31]} 33. Rxa6 {[%clk 0:00:07]}  Bb4 {[%clk 0:01:32]} 34. Raa7 {[%clk 0:00:02]}  Bxc5+ {[%clk 0:01:31]} 35. Bxc5 {[%clk 0:00:03]}  Rxc5 {[%clk 0:01:32]} 36. Rd2 {[%clk 0:00:02]}  Rfc8 {[%clk 0:01:30]} 37. a6 {[%clk 0:00:01]}  Rxc2 {[%clk 0:01:30]} 38. Ke2 {[%clk 0:00:01]}  Rxd2+ {[%clk 0:01:25]} 39. Kxd2 {[%clk 0:00:02]}  Rc5 {[%clk 0:01:25]} 40. Ke3 {[%clk 0:00:03]}  Ra5 {[%clk 0:01:25]} 41. Ra8 {[%clk 0:00:03]}  Ra4 {[%clk 0:01:24]} 42. Kf2 {[%clk 0:00:03]}  h4 {[%clk 0:01:23]} 43. a7 {[%clk 0:00:03]}  Kg7 {[%clk 0:01:24]} 44. Kg2 {[%clk 0:00:02]}  Ra2+ {[%clk 0:01:23]} 45. Kf1 {[%clk 0:00:02]}  Kf6 {[%clk 0:01:23]} 46. Kg1 {[%clk 0:00:02]}  Kf5 {[%clk 0:01:23]} 47. Rh8 {[%clk 0:00:02]}  Rxa7 {[%clk 0:01:19]} 48. Rxh4 {[%clk 0:00:02]}  Ra2 {[%clk 0:01:20]} 49. Rg4 {[%clk 0:00:02]}  e5 {[%clk 0:01:20]} 50. h4 {[%clk 0:00:03]}  f6 {[%clk 0:01:17]} 51. h5 {[%clk 0:00:03]}  Ra7 {[%clk 0:01:17]} 52. Kg2 {[%clk 0:00:03]}  Rh7 {[%clk 0:01:18]} 53. Rh4 {[%clk 0:00:02]}  Kg5 {[%clk 0:01:18]} 54. Rg4+ {[%clk 0:00:01]}  Kxh5 {[%clk 0:01:17]} 55. Kg3 {[%clk 0:00:01]}  Ra7 {[%clk 0:01:17]} 56. Rb4 {[%clk 0:00:01]}  Ra3 {[%clk 0:01:14]} 57. Rb5 {[%clk 0:00:02]}  Kg5 {[%clk 0:01:14]} 58. Rb4 {[%clk 0:00:02]}  f5 {[%clk 0:01:14]} 59. Kf2 {[%clk 0:00:02]}  Ra2+ {[%clk 0:01:11]} 60. Kg3 {[%clk 0:00:02]}  f4+ {[%clk 0:01:11]} 61. Kh3 {[%clk 0:00:02]}  Rf2 {[%clk 0:01:11]} 62. Rb3 {[%clk 0:00:02]}  Re2 {[%clk 0:01:11]} 63. Rb4 {[%clk 0:00:00]}  Kf5 {[%clk 0:01:07]} 0-1


[Site "https://www.chess.com"]

[Event "Titled Tuesday Blitz June 13 Late 2023"]
[White "Makaraci, Tunahan"]
[Black "Martinez, Ayelen"]
[WhiteFideId "6356559"]
[BlackFideId "118702"]
[WhiteElo "2160"]
[BlackElo "2074"]
[Result "1-0"]
[Round "1"]
[TimeControl "180+2"]
[Date "2023.06.13"]
[WhiteClock "0:01:22"]
[BlackClock "0:00:45"]
[Board "164"]

1. e4 {[%clk 0:03:00]}  c5 {[%clk 0:02:59]} 2. Nf3 {[%clk 0:03:00]}  d6 {[%clk 0:02:58]} 3. d4 {[%clk 0:03:00]}  cxd4 {[%clk 0:02:59]} 4. Nxd4 {[%clk 0:03:01]}  Nf6 {[%clk 0:02:57]} 5. Nc3 {[%clk 0:03:01]}  a6 {[%clk 0:02:58]} 6. Bc4 {[%clk 0:03:01]}  e6 {[%clk 0:02:54]} 7. Bb3 {[%clk 0:03:01]}  Be7 {[%clk 0:02:51]} 8. g4 {[%clk 0:03:00]}  Nc6 {[%clk 0:02:46]} 9. g5 {[%clk 0:03:00]}  Nd7 {[%clk 0:02:41]} 10. Bxe6 {[%clk 0:02:58]}  Nxd4 {[%clk 0:02:33]} 11. Bxd7+ {[%clk 0:02:53]}  Qxd7 {[%clk 0:02:27]} 12. Qxd4 {[%clk 0:02:54]}  O-O {[%clk 0:02:26]} 13. Be3 {[%clk 0:02:49]}  Re8 {[%clk 0:02:25]} 14. O-O-O {[%clk 0:02:48]}  b5 {[%clk 0:02:11]} 15. Nd5 {[%clk 0:02:45]}  Bd8 {[%clk 0:02:10]} 16. f3 {[%clk 0:02:33]}  Bb7 {[%clk 0:02:06]} 17. Rhg1 {[%clk 0:02:33]}  Bxd5 {[%clk 0:02:02]} 18. Qxd5 {[%clk 0:02:32]}  Rc8 {[%clk 0:02:01]} 19. Qxd6 {[%clk 0:02:26]}  Qh3 {[%clk 0:01:54]} 20. Qd7 {[%clk 0:02:16]}  Qxd7 {[%clk 0:01:43]} 21. Rxd7 {[%clk 0:02:16]}  Ba5 {[%clk 0:01:39]} 22. Rgd1 {[%clk 0:02:11]}  Rc6 {[%clk 0:01:37]} 23. R1d6 {[%clk 0:02:09]}  Rec8 {[%clk 0:01:29]} 24. Rxc6 {[%clk 0:02:07]}  Rxc6 {[%clk 0:01:30]} 25. Bf4 {[%clk 0:01:38]}  h6 {[%clk 0:01:22]} 26. gxh6 {[%clk 0:01:37]}  gxh6 {[%clk 0:01:23]} 27. Rd6 {[%clk 0:01:37]}  Rxd6 {[%clk 0:01:12]} 28. Bxd6 {[%clk 0:01:36]}  Kg7 {[%clk 0:01:12]} 29. f4 {[%clk 0:01:34]}  Kf6 {[%clk 0:01:12]} 30. c3 {[%clk 0:01:29]}  Ke6 {[%clk 0:01:12]} 31. Bb8 {[%clk 0:01:28]}  Bb6 {[%clk 0:01:09]} 32. Kd2 {[%clk 0:01:28]}  Bg1 {[%clk 0:01:08]} 33. h3 {[%clk 0:01:28]}  h5 {[%clk 0:01:02]} 34. Kd3 {[%clk 0:01:27]}  f6 {[%clk 0:01:02]} 35. f5+ {[%clk 0:01:27]}  Kd7 {[%clk 0:01:01]} 36. c4 {[%clk 0:01:24]}  bxc4+ {[%clk 0:00:58]} 37. Kxc4 {[%clk 0:01:25]}  Be3 {[%clk 0:00:56]} 38. Bg3 {[%clk 0:01:24]}  Bc1 {[%clk 0:00:55]} 39. b3 {[%clk 0:01:23]}  Bb2 {[%clk 0:00:56]} 40. Kd5 {[%clk 0:01:23]}  Ke7 {[%clk 0:00:54]} 41. e5 {[%clk 0:01:23]}  fxe5 {[%clk 0:00:55]} 42. Bxe5 {[%clk 0:01:24]}  Bc1 {[%clk 0:00:55]} 43. Kc6 {[%clk 0:01:23]}  a5 {[%clk 0:00:52]} 44. Bc3 {[%clk 0:01:22]}  a4 {[%clk 0:00:45]} 45. bxa4 {[%clk 0:01:22]} 1-0


[Site "https://www.chess.com"]

[Event "Titled Tuesday Blitz June 13 Late 2023"]
[White "Rodriguez Polo, Mateo"]
[Black "Perez, Maximiliano"]
[WhiteFideId "24509396"]
[BlackFideId "117234"]
[WhiteElo "2117"]
[BlackElo "2334"]
[Result "1/2-1/2"]
[Round "1"]
[TimeControl "180+2"]
[Date "2023.06.13"]
[WhiteClock "0:00:11"]
[BlackClock "0:00:20"]
[Board "165"]

1. Nf3 {[%clk 0:02:56]}  Nf6 {[%clk 0:02:59]} 2. c4 {[%clk 0:02:57]}  e6 {[%clk 0:02:59]} 3. g3 {[%clk 0:02:57]}  d5 {[%clk 0:03:00]} 4. Bg2 {[%clk 0:02:57]}  Be7 {[%clk 0:03:01]} 5. O-O {[%clk 0:02:57]}  O-O {[%clk 0:03:02]} 6. b3 {[%clk 0:02:58]}  b6 {[%clk 0:03:01]} 7. Bb2 {[%clk 0:02:58]}  Bb7 {[%clk 0:03:01]} 8. e3 {[%clk 0:02:59]}  c5 {[%clk 0:03:00]} 9. Nc3 {[%clk 0:02:59]}  dxc4 {[%clk 0:02:59]} 10. bxc4 {[%clk 0:02:59]}  Nc6 {[%clk 0:03:00]} 11. Qe2 {[%clk 0:02:56]}  a6 {[%clk 0:02:56]} 12. Rfd1 {[%clk 0:02:54]}  Rb8 {[%clk 0:02:56]} 13. d4 {[%clk 0:02:53]}  cxd4 {[%clk 0:02:56]} 14. exd4 {[%clk 0:02:54]}  Na5 {[%clk 0:02:49]} 15. d5 {[%clk 0:02:25]}  exd5 {[%clk 0:02:41]} 16. cxd5 {[%clk 0:02:26]}  Bd6 {[%clk 0:02:41]} 17. Nd4 {[%clk 0:02:23]}  Re8 {[%clk 0:02:36]} 18. Qd3 {[%clk 0:02:11]}  Qc7 {[%clk 0:02:25]} 19. Rac1 {[%clk 0:02:09]}  Nc4 {[%clk 0:02:05]} 20. Ba1 {[%clk 0:01:56]}  b5 {[%clk 0:01:48]} 21. Ndxb5 {[%clk 0:01:55]}  axb5 {[%clk 0:01:49]} 22. Nxb5 {[%clk 0:01:56]}  Qb6 {[%clk 0:01:44]} 23. Qxc4 {[%clk 0:01:43]}  Ba6 {[%clk 0:01:41]} 24. a4 {[%clk 0:01:39]}  Bxb5 {[%clk 0:01:31]} 25. axb5 {[%clk 0:01:36]}  Qxb5 {[%clk 0:01:32]} 26. Qxb5 {[%clk 0:01:26]}  Rxb5 {[%clk 0:01:33]} 27. Rc6 {[%clk 0:01:26]}  Rd8 {[%clk 0:01:30]} 28. h4 {[%clk 0:01:19]}  h6 {[%clk 0:01:27]} 29. f4 {[%clk 0:00:45]}  Ng4 {[%clk 0:01:22]} 30. Rdc1 {[%clk 0:00:37]}  g6 {[%clk 0:00:51]} 31. Rc8 {[%clk 0:00:35]}  Rb8 {[%clk 0:00:50]} 32. Rxb8 {[%clk 0:00:32]}  Rxb8 {[%clk 0:00:49]} 33. Bh3 {[%clk 0:00:32]}  Ne3 {[%clk 0:00:45]} 34. Rc8+ {[%clk 0:00:30]}  Rxc8 {[%clk 0:00:44]} 35. Bxc8 {[%clk 0:00:30]}  Nxd5 {[%clk 0:00:45]} 36. Bh3 {[%clk 0:00:29]}  f5 {[%clk 0:00:37]} 37. Bf1 {[%clk 0:00:30]}  Kf8 {[%clk 0:00:36]} 38. Kf2 {[%clk 0:00:21]}  Bc5+ {[%clk 0:00:35]} 39. Kf3 {[%clk 0:00:21]}  Ke7 {[%clk 0:00:32]} 40. Bg7 {[%clk 0:00:19]}  h5 {[%clk 0:00:30]} 41. Be5 {[%clk 0:00:19]}  Nb6 {[%clk 0:00:25]} 42. Bb5 {[%clk 0:00:17]}  Bg1 {[%clk 0:00:23]} 43. Bc7 {[%clk 0:00:15]}  Nd5 {[%clk 0:00:23]} 44. Be5 {[%clk 0:00:13]}  Bc5 {[%clk 0:00:23]} 45. Bc4 {[%clk 0:00:12]}  Nb6 {[%clk 0:00:24]} 46. Bb3 {[%clk 0:00:12]}  Nd7 {[%clk 0:00:23]} 47. Bc3 {[%clk 0:00:12]}  Bd6 {[%clk 0:00:22]} 48. Bd2 {[%clk 0:00:10]}  Nc5 {[%clk 0:00:22]} 49. Bc2 {[%clk 0:00:09]}  Ne6 {[%clk 0:00:23]} 50. Be3 {[%clk 0:00:10]}  Bc5 {[%clk 0:00:22]} 51. Bb3 {[%clk 0:00:09]}  Bxe3 {[%clk 0:00:21]} 52. Bxe6 {[%clk 0:00:09]}  Kxe6 {[%clk 0:00:18]} 53. Kxe3 {[%clk 0:00:10]}  Kd5 {[%clk 0:00:19]} 54. Kd3 {[%clk 0:00:10]}  Kc5 {[%clk 0:00:20]} 55. Kc3 {[%clk 0:00:10]}  Kd5 {[%clk 0:00:20]} 56. Kd3 {[%clk 0:00:10]}  Kc5 {[%clk 0:00:21]} 57. Kc3 {[%clk 0:00:11]}  Kd5 {[%clk 0:00:20]} 58. Kd3 {[%clk 0:00:11]} 1/2-1/2


[Site "https://www.chess.com"]